Cogmind - Beta 13 @@@ ROGUE MODE // 2024.04.28 @ 15:28:29 Player: Barbarossa Result: Destroyed by Y-54 Guardian with Flak Gun Performance ------------- Evolutions (3) 1500 Regions Visited (8) 1600 Robots Destroyed (94) 470 Value Destroyed (3441) 3441 Prototype IDs (7) 140 Alien Tech Used (0) 0 Bonus (1262) 1262 TOTAL SCORE: 8413 Bonus ------- High Alert Combat Kills 424 Follower Combat Kills 370 Entered Garrisons 200 Used RIF Installer 500 Friendly Fire -232 Cogmind --------- Core Integrity 0/700 Matter 175/300 Energy 11/100 System Corruption 4% Temperature Warning (390) Movement Core (700) Ox13 Location -7/Factory Parts ------- > --- POWER (1) -------- (None) > --- PROPULSION (4) --- (None) > --- UTILITY (5) ------ High-capacity Storage Unit System Shield Relay Coupler [Grunt] (22) > --- WEAPON (3) ------- (None) > --- INVENTORY (20) --- High-capacity Matter Pod (200) High-capacity Matter Pod (200) Authchip [R/Combat] Authchip [R/Combat] Authchip [R/Combat] Authchip [R/Combat] Authchip [Propulsion] Authchip [Propulsion] Authchip [Armor] Authchip [Weapon] Relay Coupler [Grunt] (26) Relay Coupler [Specialist] (25) Relay Coupler [Hunter] (14) Relay Coupler [Behemoth] (11) Peak State ------------ > --- POWER ------------ Deuterium Engine > --- PROPULSION ------- Heavy Treads Armored Wheel Armored Wheel > --- UTILITY ---------- Improved Cooling System High-capacity Storage Unit Improved Light Armor Plating System Shield Relay Coupler [Specialist] > --- WEAPON ----------- Improved Medium Laser Beamcaster Flak Gun > --- INVENTORY -------- Armored Treads Compact Wheel Armored Wheel High-capacity Matter Pod High-capacity Matter Pod Improved Signal Interpreter Improved Targeting Computer Advanced System Shield Authchip [R/Combat] Authchip [R/Combat] Authchip [Propulsion] Authchip [Propulsion] Authchip [Armor] Authchip [Weapon] Relay Coupler [Grunt] Relay Coupler [Grunt] Relay Coupler [Specialist] Relay Coupler [Hunter] Improved Medium Laser Datajack [Rating: 53] Favorites ----------- Power Deuterium Engine Engine Deuterium Engine Propulsion Armored Wheel Treads Light Treads Leg Aluminum Leg Wheel Armored Wheel Utility High-capacity Storage Unit Device Improved Heat Sink Storage High-capacity Storage Unit Processor Transport Network Coupler Hackware System Shield Protection Improved Light Armor Plating Weapon Improved Medium Laser Energy Gun Improved Medium Laser Ballistic Gun Heavy Assault Rifle Special Melee Weapon Datajack Build | -11 -10 -9 -8 -7 -7 -7 -7 -7 ------- Run | Yrd Mat Mat Mat Fac Was Fac Gar Fac Slots Evolved 6 | . . 2 2 2 . . . . Power . | . . . . . . . . . Propulsion 2 | . . 2 . . . . . . Utility 3 | . . . 2 1 . . . . Weapon 1 | . . . . 1 . . . . Parts Attached 84 | . 14 19 14 1 3 . 16 17 Power 6 | . 2 1 1 . . . 1 1 Engine 6 | . 2 1 1 . . . 1 1 Core . | . . . . . . . . . Reactor . | . . . . . . . . . Propulsion 30 | . 6 7 4 . 1 . 6 6 Treads 12 | . 1 2 3 . 1 . 3 2 Leg . | . . . . . . . . . Wheel 18 | . 5 5 1 . . . 3 4 Hover . | . . . . . . . . . Flight . | . . . . . . . . . Utility 15 | . 2 1 4 1 1 . 3 3 Device 4 | . . . 1 . 1 . 1 1 Storage 1 | . 1 . . . . . . . Processor 1 | . 1 . . . . . . . Hackware 3 | . . . . 1 . . 1 1 Protection 6 | . . 1 3 . . . 1 1 Artifact . | . . . . . . . . . Weapon 33 | . 4 10 5 . 1 . 6 7 Energy Gun 19 | . 4 5 3 . 1 . 3 3 Energy Cannon . | . . . . . . . . . Ballistic Gun 11 | . . 4 2 . . . 3 2 Ballistic Cannon . | . . . . . . . . . Launcher . | . . . . . . . . . Special Weapon . | . . . . . . . . . Impact Weapon . | . . . . . . . . . Slashing Weapon . | . . . . . . . . . Piercing Weapon . | . . . . . . . . . Special Melee Weapon 3 | . . 1 . . . . . 2 Unidentified Prototypes 7 | . . 3 2 . . . . 2 Parts Lost 34 | . 2 5 2 . . . 6 19 Power 2 | . . . . . . . . 2 Propulsion 15 | . 1 3 1 . . . 2 8 Utility 8 | . . . 1 . . . 3 4 Weapon 9 | . 1 2 . . . . 1 5 Highest Loss Streak 9 | . 1 2 2 . . . 4 9 To Critical Strikes . | . . . . . . . . . Average Slot Usage (%) 90 | . 81 85 94 92 96 92 91 92 Engine 8 | . 13 11 9 7 7 7 7 5 Treads 11 | . . 17 16 15 13 7 8 13 Wheel 17 | . 27 19 18 15 15 15 14 13 Device 5 | . . . 7 7 7 7 6 10 Storage 8 | . 14 11 9 7 7 7 7 7 Processor 1 | . 7 2 . . . . . . Hackware 6 | . . . . 7 7 7 10 15 Protection 7 | . . 2 15 15 15 15 10 1 Energy Gun 12 | . 14 13 9 7 12 15 15 9 Ballistic Gun 7 | . 2 8 9 7 7 7 6 11 Naked Turns . | . . . . . . . . . Heaviest Build 70 | 11 48 57 62 62 66 66 69 70 Greatest Support 70 | 20 26 32 40 24 70 70 70 32 Greatest Overweight (x) 13 | . 3 3 2 2 2 . 2 13 Average Overweight (x) 1 | . . 1 1 2 1 . . 2 Largest Inventory Capacity 20 | 8 20 20 20 20 20 20 20 20 Average Capacity 19 | 8 14 20 20 20 20 20 20 20 Most Carried 20 | 8 17 20 20 19 20 20 20 20 Average Carried 18 | 6 9 18 19 19 19 20 19 18 Final Capacity 20 | 8 20 20 20 20 20 20 20 20 Final Carried 20 | 8 15 20 20 19 20 20 20 14 Class Distribution -------------------- 44% | Mutant 24% | Bothacker-Tank 15% | Tank 11% | Bothacker-Gunner Dominant Class ---------------- Mutant | -10/Materials Mutant | -9/Materials Mutant | -8/Materials Mutant | -7/Factory Tank | -7/Waste Tank | -7/Factory Bothacker-Tank | -7/Garrison Bothacker-Gunner | -7/Factory Resources | -11 -10 -9 -8 -7 -7 -7 -7 -7 ----------- Run | Yrd Mat Mat Mat Fac Was Fac Gar Fac Matter Collected 1980 | 204 128 660 279 . 38 . 394 277 Remotely . | . . . . . . . . . Salvage Created 3812 | 73 407 993 472 . . . 652 1215 Parts 181 | 4 15 68 28 . . . 31 35 Haulers Intercepted 9 | . 2 3 1 . . . . 3 Recyclers Shooed 5 | . 3 1 . . . . . 1 Parts Field Recycled . | . . . . . . . . . Retrieved Matter . | . . . . . . . . . Parts Self-Destructed . | . . . . . . . . . Prevented . | . . . . . . . . . Kills | -11 -10 -9 -8 -7 -7 -7 -7 -7 ------- Run | Yrd Mat Mat Mat Fac Was Fac Gar Fac Combat Hostiles Destroyed 60 | . 5 16 11 . . . 17 11 Guns 50 | . 5 16 4 . . . 17 8 AOE 10 | . . . 7 . . . . 3 Classes Destroyed 13 | 1 2 3 2 . . . 1 4 Worker 5 | . . . 1 . . . . 4 Builder 1 | . . . . . . . . 1 Hauler 9 | . 2 3 1 . . . . 3 Recycler 13 | 1 1 4 2 . . . . 5 Mechanic 1 | . . . . . . . . 1 Watcher 4 | . . 3 1 . . . . . Swarmer 22 | . . 10 6 . . . 6 . Grunt 21 | . 5 1 2 . . . 8 5 Brawler 1 | . . . . . . . . 1 Duelist 2 | . . . . . . . . 2 Sentry 11 | . . 5 2 . . . 2 2 Hunter 1 | . . . 1 . . . . . Programmer 2 | . . . . . . . 1 1 Thug 1 | . . . . . . . 1 . Best Kill Streak 8 | 1 3 6 6 . . . 4 8 Combat Bots Only 6 | . 2 4 6 . . . 4 5 Max Kills in Single Turn 6 | 1 1 2 6 . . . 2 3 Gunslinging 1 | . . 1 . . . . 1 . Exploded 6 | . . . 6 . . . . 2 Melee . | . . . . . . . . . Uniques/NPCs Destroyed . | . . . . . . . . . Combat | -11 -10 -9 -8 -7 -7 -7 -7 -7 -------- Run | Yrd Mat Mat Mat Fac Was Fac Gar Fac Hostile Shots Fired 593 | . 39 72 47 . . . 156 279 Missed 165 | . 8 18 11 . . . 49 79 Damage Taken 5543 | . 391 589 736 . . . 1511 2316 Core 1008 | . 101 146 59 . . . 138 564 Absorbed by Shields . | . . . . . . . . . Core Remaining (%) 77 | 100 59 63 89 . . . . . Volleys Fired 251 | 4 48 60 33 . . . 48 58 Largest 3 | 2 2 2 2 . . . 3 3 Hottest 161 | 70 90 90 79 . . . 161 123 Shots Fired 545 | 8 94 116 66 . . 1 141 119 Gun 545 | 8 94 116 66 . . 1 141 119 Cannon . | . . . . . . . . . Launcher . | . . . . . . . . . Special . | . . . . . . . . . Kinetic 223 | 4 18 42 33 . . 1 47 78 Thermal 318 | 4 72 74 33 . . . 94 41 Explosive . | . . . . . . . . . Electromagnetic 4 | . 4 . . . . . . . Robot Hit Streak 12 | 5 10 8 8 . . . 9 12 Robot Miss Streak 10 | 1 5 3 3 . . 1 10 4 Penetration Max 1 | . . . . . . . . 1 Secondary Targets 13 | . 2 4 1 . . . 6 . Max Gunslinging Chain 1 | . 1 1 1 . . . 1 . Shots Hit Robots 347 | 6 61 78 39 . . . 77 86 Core Hits 196 | 2 20 36 25 . . . 70 43 Critical Kills 4 | . . 1 1 . . . . 2 Critical Parts Destroyed 2 | . . . . . . . 1 1 Critical Strikes 22 | . 2 8 2 . . . 4 6 Burn 16 | . 2 7 1 . . . 3 3 Destroy 6 | . . 1 1 . . . 1 3 Melee Attacks 6 | . . 1 . . . . . 5 Impact . | . . . . . . . . . Slashing . | . . . . . . . . . Piercing . | . . . . . . . . . Sneak Attacks 1 | . . 1 . . . . . . Combat Hostiles . | . . . . . . . . . Follow-up Attacks . | . . . . . . . . . Damage Inflicted 8348 | 60 711 1145 1800 . . 15 1532 3085 Guns 6136 | 60 711 1145 609 . . 15 1532 2064 Cannons . | . . . . . . . . . Explosions 2200 | . . . 1191 . . . . 1009 Melee . | . . . . . . . . . Ramming 12 | . . . . . . . . 12 Kinetic 2850 | 35 99 447 300 . . 15 647 1307 Thermal 3272 | 25 567 698 309 . . . 885 788 Explosive 2169 | . . . 1191 . . . . 978 Electromagnetic 45 | . 45 . . . . . . . Impact . | . . . . . . . . . Slashing . | . . . . . . . . . Piercing . | . . . . . . . . . Highest Corruption 5 | . . . 5 1 1 1 1 4 Average Corruption 1 | . . . 4 1 1 1 1 1 Corruption Purged . | . . . . . . . . . Corruption Blocked . | . . . . . . . . . Effects 27 | . . . 7 . . 1 11 8 Message Errors 7 | . . . 2 . . . 2 3 Matter Fused 4 | . . . 2 . . . 2 . Heat Flow Errors 5 | . . . 1 . . . 2 2 Energy Discharges 1 | . . . 1 . . . . . Parts Rejected 1 | . . . . . . . . 1 Parts Fused 2 | . . . . . . . 2 . Data Loss (minor) 1 | . . . . . . . . 1 Misfires 4 | . . . . . . 1 3 . Alerts 1 | . . . 1 . . . . . Weapon Failures 1 | . . . . . . . . 1 Overload Shots 4 | . . . . . . . . 4 Overflow Damage 184 | . . . 61 . . . . 123 Projectiles . | . . . . . . . . . Explosions 184 | . . . 61 . . . . 123 Melee . | . . . . . . . . . Knockbacks . | . . . . . . . . . Impact . | . . . . . . . . . Kinetic . | . . . . . . . . . Secondary . | . . . . . . . . . Self-Inflicted Damage 451 | . . . 201 . . . . 250 Shots 5 | . . . 2 . . . . 3 Rammed 2 | . . . . . . . . 2 Targets Rammed 2 | . . . . . . . . 2 Kicked . | . . . . . . . . . Crushed . | . . . . . . . . . Highest Temperature 645 | 60 306 84 193 . . . 346 645 Average Temperature 86 | 30 110 24 67 . . . 115 232 Received Heat Transfer 1527 | . 240 159 144 . . . 315 669 Effects 2 | . . . . . . . . 2 Matter Decay 1 | . . . . . . . . 1 Short Circuit 1 | . . . . . . . . 1 Siege Activations . | . . . . . . . . . Robots Corrupted . | . . . . . . . . . Combat Hostiles . | . . . . . . . . . Parts Fried . | . . . . . . . . . Impact Corruptions . | . . . . . . . . . Robots Melted 1 | . . . . . . . . 1 Combat Hostiles . | . . . . . . . . . Parts Melted 13 | . 2 5 . . . . 5 1 Heat Transferred 8095 | 74 1683 2213 740 . . . 1866 1519 Parts Sabotaged . | . . . . . . . . . Parts Stolen . | . . . . . . . . . Parts Stripped . | . . . . . . . . . Power Chain Reactions . | . . . . . . . . . Alert | -11 -10 -9 -8 -7 -7 -7 -7 -7 ------- Run | Yrd Mat Mat Mat Fac Was Fac Gar Fac Peak Influence 1064 | 5 157 319 294 145 50 28 980 1064 Initial 514 | . 3 1 111 133 50 28 19 514 Average 363 | 2 89 213 192 141 48 28 535 628 Maximum Alert Level 3 | . . 1 1 . . . 3 3 Low Security (%) 41 | 100 100 38 50 100 100 100 26 . Level 1 19 | . . 61 49 . . . 4 . Level 2 26 | . . . . . . . 36 85 Level 3 13 | . . . . . . . 32 14 Level 4 . | . . . . . . . . . Level 5 . | . . . . . . . . . High Security . | . . . . . . . . . Max Security . | . . . . . . . . . Squads Dispatched 6 | . . . . 1 . . . 5 Investigation 1 | . . . . 1 . . . . Extermination 1 | . . . . . . . . 1 Reinforcement 2 | . . . . . . . . 2 Assault . | . . . . . . . . . Garrison 2 | . . . . . . . . 2 Intercept . | . . . . . . . . . Searches Triggered . | . . . . . . . . . Construction Impeded . | . . . . . . . . . Haulers Reinforced . | . . . . . . . . . Active Scanning Responses . | . . . . . . . . . Cargo Convoy Interrupts . | . . . . . . . . . Stealth | -11 -10 -9 -8 -7 -7 -7 -7 -7 --------- Run | Yrd Mat Mat Mat Fac Was Fac Gar Fac Distress Signals 9 | . 1 5 1 . . . . 2 Communications Jammed . | . . . . . . . . . Distress Signals . | . . . . . . . . . Times Spotted 102 | . 8 20 21 . 1 . 31 21 Peak Tracking Total 8 | . 3 4 8 . 1 . 6 5 Tactical Retreats 3 | . . . 2 . . . 1 . Traps | -11 -10 -9 -8 -7 -7 -7 -7 -7 ------- Run | Yrd Mat Mat Mat Fac Was Fac Gar Fac Traps Triggered 11 | . 2 . 3 1 . . 5 . Indirectly . | . . . . . . . . . Trap Hack Attempts 1 | . . 1 . . . . . . Triggered . | . . . . . . . . . Disarmed 1 | . . 1 . . . . . . Reprogrammed . | . . . . . . . . . Reused . | . . . . . . . . . Traps Extracted . | . . . . . . . . . Installed . | . . . . . . . . . Triggered . | . . . . . . . . . Machines | -11 -10 -9 -8 -7 -7 -7 -7 -7 ---------- Run | Yrd Mat Mat Mat Fac Was Fac Gar Fac Machines Disabled 35 | . 1 1 3 . . . 4 26 Max in Single Turn 5 | . 1 1 2 . . . 1 5 Garrison Relay 4 | . . . . . . . 4 . Machines Repaired . | . . . . . . . . . Machines Dismantled . | . . . . . . . . . Machines Sabotaged . | . . . . . . . . . Overloaded Fab Kills . | . . . . . . . . . Hacking | -11 -10 -9 -8 -7 -7 -7 -7 -7 --------- Run | Yrd Mat Mat Mat Fac Was Fac Gar Fac Machines Accessed 19 | . 5 4 4 1 . 1 2 2 Terminals 15 | . 5 3 3 . . . 2 2 Fabricators . | . . . . . . . . . Repair Stations . | . . . . . . . . . Recycling Units . | . . . . . . . . . Scanalyzers 3 | . . 1 1 1 . . . . Garrison Access 1 | . . . . . . 1 . . Total Hacks 54 | . 16 11 15 3 . 1 5 3 Successful 27 | . 10 5 10 1 . 1 . . Failed 27 | . 6 6 5 2 . . 5 3 Catastrophic 3 | . . . 1 . . . 1 1 Database Lockouts . | . . . . . . . . . Manual 36 | . 12 6 13 2 . . . 3 Terminals 46 | . 16 9 13 . . . 5 3 Fabricators . | . . . . . . . . . Repair Stations . | . . . . . . . . . Recycling Units . | . . . . . . . . . Scanalyzers 7 | . . 2 2 3 . . . . Garrison Access 1 | . . . . . . 1 . . Terminal Hacks 14 | . 7 2 5 . . . . . Terminal Index 1 | . . . 1 . . . . . Alert Level 3 | . 1 2 . . . . . . Unreport Threat 3 | . 2 . 1 . . . . . Locate Traps 5 | . 2 . 3 . . . . . Hauler Manifests 1 | . 1 . . . . . . . Zone Layout 1 | . 1 . . . . . . . Fabricator Hacks . | . . . . . . . . . Repair Station Hacks . | . . . . . . . . . Recycling Unit Hacks . | . . . . . . . . . Scanalyzer 3 | . . . 2 1 . . . . Insert Component 2 | . . . 1 1 . . . . Analyze 1 | . . . 1 . . . . . Garrison Access Hacks 1 | . . . . . . 1 . . Unlock Access 1 | . . . . . . 1 . . Unauthorized Hacks 9 | . 3 3 3 . . . . . Terminals 9 | . 3 3 3 . . . . . Botnet 9 | . 3 3 3 . . . . . Fabricators . | . . . . . . . . . Repair Stations . | . . . . . . . . . Recycling Units . | . . . . . . . . . Scanalyzers . | . . . . . . . . . Garrison Access . | . . . . . . . . . Data Cores Recovered . | . . . . . . . . . Used . | . . . . . . . . . Hacking Detections 18 | . 4 4 4 1 . 1 2 2 Full Trace Events 3 | . . . . 1 . . 2 . Feedback Events 1 | . . . . 1 . . . . Corruption 1 | . . . . 1 . . . . Feedback Blocked . | . . . . . . . . . Robot Schematics Acquired . | . . . . . . . . . Robots Built . | . . . . . . . . . Authchips . | . . . . . . . . . Time . | . . . . . . . . . Total Robot Build Rating . | . . . . . . . . . Part Schematics Acquired 1 | . . . 1 . . . . . Parts Built . | . . . . . . . . . Authchips . | . . . . . . . . . Time . | . . . . . . . . . Total Part Build Rating . | . . . . . . . . . Parts Repaired . | . . . . . . . . . Time . | . . . . . . . . . Parts Recycled . | . . . . . . . . . Recycled Matter . | . . . . . . . . . Retrieved Matter . | . . . . . . . . . Retrieved Components . | . . . . . . . . . Parts Scanalyzed 2 | . . . 1 1 . . . . Part Schematics Acquired 1 | . . . 1 . . . . . Parts Damaged . | . . . . . . . . . Bothacking | -11 -10 -9 -8 -7 -7 -7 -7 -7 ------------ Run | Yrd Mat Mat Mat Fac Was Fac Gar Fac Used RIF Installer 1 | . . . . . . . 1 . Robots Hacked 3 | . . 1 . . . . . 2 Non-combat 1 | . . 1 . . . . . . Combat 2 | . . . . . . . . 2 Robot Hacks Applied 3 | . . 1 . . . . . 2 parse_system 2 | . . . . . . . . 2 no_distress 1 | . . 1 . . . . . . Relay Couplers Released 20 | . . . . . . . 20 . Machine Destruction 16 | . . . . . . . 16 . Programmers 4 | . . . . . . . 4 . Attached 2 | . . . . . . . 1 1 Fabnet Peak Effective % . | . . . . . . . . . Robots Rewired . | . . . . . . . . . Allies Hacked . | . . . . . . . . . Hacks Repelled . | . . . . . . . . . Allies | -11 -10 -9 -8 -7 -7 -7 -7 -7 -------- Run | Yrd Mat Mat Mat Fac Was Fac Gar Fac Total Allies 22 | . . . . . 20 . 2 . Largest Group 20 | . . . . . 20 12 12 . Highest-Rated Group 495 | . . . . . 495 302 313 . Highest-Rated Ally 35 | . . . . . 35 35 35 . Total Orders . | . . . . . . . . . Ally Attacks 138 | . . . . . 39 . 99 . Total Damage 2951 | . . . . . 1294 . 1657 . Kills 17 | . . . . . 4 . 13 . Allies Corrupted . | . . . . . . . . . Allies Melted . | . . . . . . . . . Intel | -11 -10 -9 -8 -7 -7 -7 -7 -7 ------- Run | Yrd Mat Mat Mat Fac Was Fac Gar Fac Robot Analysis Total . | . . . . . . . . . Derelict Logs Recovered . | . . . . . . . . . Drone Launches . | . . . . . . . . . Drone Recoveries . | . . . . . . . . . Exploration | -11 -10 -9 -8 -7 -7 -7 -7 -7 ------------- Run | Yrd Mat Mat Mat Fac Was Fac Gar Fac Turns Passed 4255 | 20 508 698 652 60 150 34 1415 718 Spaces Moved 2480 | 6 329 356 435 50 109 21 808 366 Core 1 | . . . . . . . . 1 Treads 545 | . . . . . 19 21 505 . Legs 6 | 6 . . . . . . . . Wheels 1928 | . 329 356 435 50 90 . 303 365 Hover . | . . . . . . . . . Flight . | . . . . . . . . . Fastest Speed 80 | 120 80 105 108 120 120 160 120 115 Average Speed 126 | 120 97 120 119 120 126 160 145 126 Slowest Speed 700 | 120 130 145 120 120 160 160 160 700 Overloaded Moves . | . . . . . . . . . Propulsion Burnouts . | . . . . . . . . . Robots Hopped . | . . . . . . . . . Cave-ins Triggered . | . . . . . . . . . Exploration Rate (%) 32 | 2 57 31 40 2 69 1 79 15 Regions Visited 8 Branch Regions . Pre-discovered Areas . | . . . . . . . . . Known Exits Taken 1 | . . . . . . 1 . . Unknown Exits Taken 4 | 1 1 1 1 . . . . . Scrap Searched . | . . . . . . . . . Spaces Dug . | . . . . . . . . . Terrain Destroyed 143 | . . . 56 . . . . 87 Melee . | . . . . . . . . . Projectile 3 | . . . . . . . . 3 AOE 140 | . . . 56 . . . . 84 Terrain Rammed . | . . . . . . . . . Walls Destroyed . | . . . . . . . . . Machines Disabled . | . . . . . . . . . Actions | -11 -10 -9 -8 -7 -7 -7 -7 -7 --------- Run | Yrd Mat Mat Mat Fac Was Fac Gar Fac Total 3103 | 11 427 510 503 51 123 21 946 511 Wait 145 | . 11 44 3 . . . 30 57 Move 2474 | 5 328 355 434 50 108 21 807 366 Hop . | . . . . . . . . . Pick Up 63 | 2 20 15 7 . 5 . 12 2 Fast Attach 24 | . . 7 7 . 1 . 3 6 Attach 29 | . 8 5 2 1 1 . 5 7 Detach 2 | . . 1 . . 1 . . . Swap 31 | . 6 7 5 . 1 . 8 4 Drop 51 | . 6 14 12 . 6 . 9 4 Fire 251 | 4 48 60 33 . . . 48 58 Melee 6 | . . 1 . . . . . 5 Ram 2 | . . . . . . . . 2 Kick . | . . . . . . . . . Crush . | . . . . . . . . . Escape Stasis 24 | . . . . . . . 24 . Rewire . | . . . . . . . . . Trap 1 | . . 1 . . . . . . Miscellaneous . | . . . . . . . . . Route ------- -11/Scrapyard -10/Materials (discovered 3 exits: *Mat x2 / [*Min]) -9/Materials -8/Materials -7/Factory -7/Waste -7/Factory -7/Garrison (discovered 3 exits: *Fac x3) -7/Factory History --------- Turn | Location | Event 14 | -11/Scrapyard | Discovered new exit (range 3) 21 | -11/Scrapyard | Entered Materials 268 | -10/Materials | Discovered new exit (range 15) 315 | -10/Materials | Build established: Mutant 354 | -10/Materials | Discovered new exit (range 12) 498 | -10/Materials | Discovered new exit (range 15) 529 | -10/Materials | Entered another Materials area 529 | -9/Materials | Evolved 2 slots: Propulsion x2 1222 | -9/Materials | Discovered new exit (range 4) 1227 | -9/Materials | Entered another Materials area 1227 | -8/Materials | Evolved 2 slots: Utility x2 1869 | -8/Materials | Discovered new exit (range 7) 1879 | -8/Materials | Entered Factory 1879 | -7/Factory | Evolved 2 slots: Utility x1, Weapon x1 1939 | -7/Factory | Sucked down chute 1939 | -7/Factory | Entered Waste 1940 | -7/Waste | Joined by Warlord forces that had cleared the area 2059 | -7/Waste | A Compactor rumbled back to life 2062 | -7/Waste | Spotted C-40 Crusher 2065 | -7/Waste | Allies destroyed C-40 Crusher 2065 | -7/Waste | Discovered new exit (range 16) 2089 | -7/Waste | Entered Factory 2089 | -7/Factory | Accompanied by 12 allies 2095 | -7/Factory | Lost 4 allies 2123 | -7/Factory | Identified exit to Garrison 2123 | -7/Factory | Entered Garrison 2123 | -7/Garrison | Accompanied by 12 allies 2177 | -7/Garrison | Rescued a captive Derelict 2181 | -7/Garrison | Rescued a captive Derelict 2187 | -7/Garrison | Triggered checkpoint 2201 | -7/Garrison | Installed Relay Interface Framework 2233 | -7/Garrison | Lost 6 allies 2270 | -7/Garrison | Build established: Tank 2411 | -7/Garrison | Garrison Relay disabled 2492 | -7/Garrison | Triggered checkpoint 2507 | -7/Garrison | Triggered checkpoint 2546 | -7/Garrison | Lost 4 allies 2611 | -7/Garrison | Garrison Relay disabled 2666 | -7/Garrison | Discovered new exit (range 15) 2809 | -7/Garrison | Lost 3 allies 2869 | -7/Garrison | Triggered checkpoint 2887 | -7/Garrison | Garrison Relay disabled 2915 | -7/Garrison | Build established: Bothacker-Tank 2943 | -7/Garrison | Discovered new exit (range 9) 3069 | -7/Garrison | Triggered checkpoint 3075 | -7/Garrison | Triggered checkpoint 3129 | -7/Garrison | Discovered new exit (range 8) 3161 | -7/Garrison | Triggered checkpoint 3212 | -7/Garrison | Lost 4 parts (2n1u1w) 3255 | -7/Garrison | Garrison Relay disabled 3538 | -7/Garrison | Entered Factory 3787 | -7/Factory | Lost 3 parts (2n1w) 4083 | -7/Factory | Build established: Bothacker-Gunner 4149 | -7/Factory | Garrison activated, responded to threat 4185 | -7/Factory | Lost 4 parts (1p2n1u) 4236 | -7/Factory | Core integrity fell below 50% 4248 | -7/Factory | Core integrity fell below 20% 4256 | -7/Factory | Destroyed by Y-54 Guardian with Flak Gun Last Messages --------------- 04240_ Hvy. Treads destroyed. 04240_ Dropped Faulty Imp. Spread Laser. 04241_ Overheating: Matter decay (-21). 04241_ Dropped Broken Com. Wheel. 04241_ Penetrated by Slug. 04241_ Adv. Heat Sink destroyed. 04241_ K-01 Serf collects debris. 04244_ ALERT: Hostiles spotted, dispatching reinforcements to Terminal F001. 04245_ K-01 Serf collects debris. 04247_ Penetrated by Slug. 04248_ Acquired Imp. Spread Laser. 04248_ K-01 Serf collects debris. 04250_ U-05 Engineer lays Concrete. 04251_ U-05 Engineer builds a Wall. 04253_ Penetrated by Slug. 04256_ System corrupted: Imp. Spread Laser rejected. 04256_ U-05 Engineer lays Concrete. 04256_ Relay Coupler [Specialist] destroyed. Map ----- +----------------------------------------------------+ | ?????????????????????????????????????????????????? | | ?????????????????????????????????????????????????? | | ?????????????????????????????????????????????????? | | ?????????????????????????????????????????????????? | | ?????????????????????????????????????????????????? | | ?????????????????????????????????????????????????? | | ?????????????????????????????????????????????????? | | ?????????????????????????????????????????????????? | | ?????????????????????????????????????????????????? | | ?????????????????????????????????????????????????? | | ?????????????????????????????????????????????????? | | ?????????????????????????????????????????????????? | | ?????????????????????????????????????????????????? | | ?????????????????????????????????????????????????? | | ?????????????????????????????????????????????????? | | ?????????????????????????????????????????????????? | | ??????????????????????#######????????????????????? | | ??????????????????????# """T""" ?????????????????? | | ??????????????????????# #?????????????? | | ???????######??#??????# """""""""u# ???????????? | | ???????# ?? ??????# o ? ??????????? | | ???????# "?? ??????# """""""""r# ?????????? | | ???????# """ ??????# ?????????? | | ???????# """ #?????# r ????????? | | ???????# #?????# ][[ ????????? | | ???????# """ #?????# @[[ *????????? | | ???????# """ #?????# Y[[[ ????????? | | ???????# """ #????## # ????????? | | ???????# #????# #?????????????? | | ???????# """ ######## # #####?????????????? | | ???????# """ # #???????????????? | | ???????# """ # #???????????????? | | ???????# ! # #??????????????? | | ???????# """ " #??????????????? | | ######## """ " ! #??????????????? | | # """ # !% #??????????????? | | # # ! #??????????????? | | # !# ##??????????????? | | ########## #??????????????? | | # "#??????????????? | | """ # "#??????????????? | | """ # % "#??????????????? | | """ # "#??????????????? | | "" # #??????????????? | | "" # ! #??????????????? | | # = "#??????????????? | | # ###### " #??????????????? | | #+###### #?## ##?????????????? | | #?#" #?????????????? | | ^ #?#""" " #?????????????? | +----------------------------------------------------+ Best States ------------- Heat Dissipation 67 Coolant Potential 50 Energy Generation 18 Energy Capacity 280 Matter Stores 300 Matter Capacity 300 Sight Range 16 Terrain Scan Density 10 Armor Coverage 300 Evasion (%) 45 Recoil Reduction 2 Defensive Hacking 10 Relay Coupler Types 2 Relay Coupler Value 43 Authchip Count 8 Item Schematics ----------------- Hcp. Matter Pod | -8/Materials | Scanalyzed Robot Schematics ------------------ None Fabricated ------------ Nothing Alien Tech Used ----------------- None Achievements -------------- Quick And Dirty We Are Legion Challenges ------------ None Game ------ Seed AerolevMetafiberAutohacker Manual? 0 Play Time 00:46:24 Cumulative 131.3 hours Start 2024.04.28 @ 14:37:44 End 2024.04.28 @ 15:28:29 Sessions 1 Manual Loads 0 Difficulty Rogue Special Mode None Game No. 256 Rogue 256 Adventurer 0 Explorer 0 Win Type - Total 0 Types 0/0/0/0/0/0/0/0/0 Lore% 33 Gallery% 47 Achievement% 33 Wizard Run 0 Options --------- Layout 1 ASCII 0 Keyboard 0 Movement Mouse Keybinds 0 Fullscreen 1 Font 24/Smallcaps Map View 50x40 Zoom Use 0% Tactical HUD 1 Map Filters NONE Filters NONE Steam 1 RUN: 73b2158d-b390-4625-99a8-978b441f3467